[Event "*** Titled Tuesday Blitz"]
[Site "Chess.com"]
[Date "2020.05.05"]
[Round "9"]
[White "tigra"]
[Black "Beca95"]
[Result "1/2-1/2"]
[WhiteElo "2808"]
[BlackElo "2871"]
[TimeControl "180+1"]
[EndTime "11:49:37 PDT"]
[Termination "Game drawn by stalemate"]

1. Nc3 {[%clk 0:03:00.9]} 1... d5 {[%clk 0:02:58.3]} 2. d4 {[%clk 0:03:00.6]}
2... Nf6 {[%clk 0:02:57.1]} 3. Bf4 {[%clk 0:03:00.3]} 3... c5 {[%clk 0:02:55.4]}
4. e4 {[%clk 0:02:57.3]} 4... Nxe4 {[%clk 0:02:49.1]} 5. Nxe4 {[%clk 0:02:54.5]}
5... dxe4 {[%clk 0:02:50]} 6. dxc5 {[%clk 0:02:52.9]} 6... Qa5+ {[%clk
0:02:45.8]} 7. c3 {[%clk 0:02:52.5]} 7... Qxc5 {[%clk 0:02:42.6]} 8. Qa4+ {[%clk
0:02:44.4]} 8... Nc6 {[%clk 0:02:37.7]} 9. O-O-O {[%clk 0:02:27.3]} 9... e5
{[%clk 0:01:50.9]} 10. Be3 {[%clk 0:02:08.8]} 10... Qa5 {[%clk 0:01:50.1]} 11.
Qxe4 {[%clk 0:01:22.3]} 11... f5 {[%clk 0:01:20.3]} 12. Qc4 {[%clk 0:01:15.5]}
12... f4 {[%clk 0:01:07]} 13. Bxf4 {[%clk 0:01:15.2]} 13... exf4 {[%clk
0:01:04.4]} 14. Nf3 {[%clk 0:01:15.9]} 14... Be7 {[%clk 0:00:57.4]} 15. g3
{[%clk 0:00:47.1]} 15... Qc5 {[%clk 0:00:53.3]} 16. Qb3 {[%clk 0:00:26.8]} 16...
Bg4 {[%clk 0:00:22.6]} 17. Be2 {[%clk 0:00:20.6]} 17... Qxf2 {[%clk 0:00:18.7]}
18. Qxb7 {[%clk 0:00:18.8]} 18... O-O {[%clk 0:00:18.9]} 19. Bc4+ {[%clk
0:00:15.8]} 19... Kh8 {[%clk 0:00:19]} 20. Rdf1 {[%clk 0:00:14.5]} 20... Qe3+
{[%clk 0:00:18.8]} 21. Nd2 {[%clk 0:00:15]} 21... Ne5 {[%clk 0:00:16.6]} 22. Re1
{[%clk 0:00:14.2]} 22... Qc5 {[%clk 0:00:14.1]} 23. b4 {[%clk 0:00:13.5]} 23...
Qd6 {[%clk 0:00:12.4]} 24. gxf4 {[%clk 0:00:12.1]} 24... Nxc4 {[%clk 0:00:10.2]}
25. Nxc4 {[%clk 0:00:12.4]} 25... Qd3 {[%clk 0:00:10.6]} 26. Re3 {[%clk
0:00:08.9]} 26... Qxc4 {[%clk 0:00:10.8]} 27. Qxe7 {[%clk 0:00:09.8]} 27... Bf5
{[%clk 0:00:10.6]} 28. Rg1 {[%clk 0:00:09.2]} 28... Qf7 {[%clk 0:00:10.6]} 29.
Kb2 {[%clk 0:00:07.8]} 29... Qxe7 {[%clk 0:00:09.9]} 30. Rxe7 {[%clk 0:00:07.9]}
30... g6 {[%clk 0:00:10.5]} 31. c4 {[%clk 0:00:08.5]} 31... Rab8 {[%clk
0:00:10.7]} 32. a3 {[%clk 0:00:08.4]} 32... a6 {[%clk 0:00:11.2]} 33. Kc3 {[%clk
0:00:08.4]} 33... Rfd8 {[%clk 0:00:10.4]} 34. Re3 {[%clk 0:00:07.8]} 34... Rbc8
{[%clk 0:00:10.1]} 35. c5 {[%clk 0:00:07.4]} 35... Kg7 {[%clk 0:00:10]} 36. Rge1
{[%clk 0:00:08]} 36... Kf6 {[%clk 0:00:10]} 37. Kc4 {[%clk 0:00:08.3]} 37... Rc7
{[%clk 0:00:09.4]} 38. a4 {[%clk 0:00:08.6]} 38... Rdc8 {[%clk 0:00:09.9]} 39.
Re5 {[%clk 0:00:08.8]} 39... Bd7 {[%clk 0:00:09.9]} 40. b5 {[%clk 0:00:08.9]}
40... axb5+ {[%clk 0:00:10.3]} 41. axb5 {[%clk 0:00:09.8]} 41... Rb7 {[%clk
0:00:10.7]} 42. Rb1 {[%clk 0:00:09.7]} 42... Bc6 {[%clk 0:00:11.5]} 43. Rb4
{[%clk 0:00:08.3]} 43... Be8 {[%clk 0:00:11.3]} 44. Kd4 {[%clk 0:00:06.6]} 44...
Rd7+ {[%clk 0:00:11.1]} 45. Kc3 {[%clk 0:00:06]} 45... Rb7 {[%clk 0:00:11.1]}
46. c6 {[%clk 0:00:06.2]} 46... Bxc6 {[%clk 0:00:10.9]} 47. bxc6 {[%clk
0:00:06.9]} 47... Rxc6+ {[%clk 0:00:11.6]} 48. Rc4 {[%clk 0:00:07.3]} 48...
Rxc4+ {[%clk 0:00:11.9]} 49. Kxc4 {[%clk 0:00:08.2]} 49... Rb2 {[%clk 0:00:12]}
50. Kd4 {[%clk 0:00:08.3]} 50... Rxh2 {[%clk 0:00:11.9]} 51. Ke3 {[%clk
0:00:09]} 51... h5 {[%clk 0:00:09.5]} 52. Kf3 {[%clk 0:00:08.4]} 52... Rc2
{[%clk 0:00:08.3]} 53. Ra5 {[%clk 0:00:08.1]} 53... Rc3+ {[%clk 0:00:08.5]} 54.
Kf2 {[%clk 0:00:08.2]} 54... h4 {[%clk 0:00:08.8]} 55. Kg2 {[%clk 0:00:08.5]}
55... Rg3+ {[%clk 0:00:08.5]} 56. Kf2 {[%clk 0:00:08.5]} 56... Rg4 {[%clk
0:00:09]} 57. Kf3 {[%clk 0:00:08.9]} 57... Rg3+ {[%clk 0:00:09.5]} 58. Kf2
{[%clk 0:00:09.6]} 58... Rc3 {[%clk 0:00:09.7]} 59. Kg2 {[%clk 0:00:09.3]} 59...
h3+ {[%clk 0:00:10.3]} 60. Kh2 {[%clk 0:00:09.5]} 60... Rf3 {[%clk 0:00:10.9]}
61. Rb5 {[%clk 0:00:09.6]} 61... Kg7 {[%clk 0:00:11]} 62. Rc5 {[%clk 0:00:09.4]}
62... Kf6 {[%clk 0:00:10.2]} 63. Rb5 {[%clk 0:00:09.7]} 63... Rxf4 {[%clk
0:00:10]} 64. Kxh3 {[%clk 0:00:09.6]} 64... Rf5 {[%clk 0:00:10.2]} 65. Rb4
{[%clk 0:00:09.4]} 65... Kg5 {[%clk 0:00:10.5]} 66. Rb1 {[%clk 0:00:09]} 66...
Re5 {[%clk 0:00:10.6]} 67. Kg2 {[%clk 0:00:09.6]} 67... Kf4 {[%clk 0:00:10.2]}
68. Kg1 {[%clk 0:00:10.5]} 68... Re3 {[%clk 0:00:09.6]} 69. Ra1 {[%clk
0:00:10.5]} 69... g5 {[%clk 0:00:09.9]} 70. Kh1 {[%clk 0:00:10.9]} 70... Rd3
{[%clk 0:00:10]} 71. Kg1 {[%clk 0:00:11.3]} 71... g4 {[%clk 0:00:10]} 72. Kh1
{[%clk 0:00:11.8]} 72... Kg3 {[%clk 0:00:10.4]} 73. Kg1 {[%clk 0:00:12.3]} 73...
Kh3 {[%clk 0:00:10.8]} 74. Kh1 {[%clk 0:00:12.7]} 74... g3 {[%clk 0:00:11.3]}
75. Kg1 {[%clk 0:00:12.3]} 75... Rf3 {[%clk 0:00:11.6]} 76. Rb1 {[%clk
0:00:11.9]} 76... g2 {[%clk 0:00:11.4]} 77. Rc1 {[%clk 0:00:12.2]} 77... Kg3
{[%clk 0:00:11.8]} 78. Rc3 {[%clk 0:00:11.2]} 78... Rxc3 {[%clk 0:00:11.1]}
1/2-1/2

[Event "*** Titled Tuesday Blitz"]
[Site "Chess.com"]
[Date "2020.05.05"]
[Round "9"]
[White "CMS13"]
[Black "alexsergeyev"]
[Result "0-1"]
[WhiteElo "2190"]
[BlackElo "2393"]
[TimeControl "180+1"]
[EndTime "11:49:38 PDT"]
[Termination "alexsergeyev won by checkmate"]

1. e4 {[%clk 0:03:00.9]} 1... e5 {[%clk 0:02:57.7]} 2. Bc4 {[%clk 0:02:59.8]}
2... Nf6 {[%clk 0:02:57.3]} 3. Nc3 {[%clk 0:02:59.2]} 3... c6 {[%clk 0:02:56.7]}
4. d4 {[%clk 0:02:58.8]} 4... Qa5 {[%clk 0:02:52.3]} 5. dxe5 {[%clk 0:02:45.4]}
5... Nxe4 {[%clk 0:02:43.1]} 6. Bxf7+ {[%clk 0:02:20]} 6... Kxf7 {[%clk
0:02:41.9]} 7. Qf3+ {[%clk 0:02:19.6]} 7... Nf6 {[%clk 0:02:41.7]} 8. exf6
{[%clk 0:02:19.4]} 8... Qe5+ {[%clk 0:02:30.9]} 9. Be3 {[%clk 0:02:18.2]} 9...
Qxf6 {[%clk 0:02:30.6]} 10. Qh5+ {[%clk 0:02:06.9]} 10... g6 {[%clk 0:02:29.4]}
11. Qe2 {[%clk 0:01:58.8]} 11... d5 {[%clk 0:02:20.4]} 12. O-O-O {[%clk
0:01:58.4]} 12... Bg7 {[%clk 0:01:57.6]} 13. Nf3 {[%clk 0:01:57.3]} 13... Re8
{[%clk 0:01:54.1]} 14. Qd3 {[%clk 0:01:53.2]} 14... Bf5 {[%clk 0:01:49.2]} 15.
Qd2 {[%clk 0:01:51.2]} 15... Nd7 {[%clk 0:01:40.3]} 16. h4 {[%clk 0:01:21.2]}
16... Ne5 {[%clk 0:01:03.6]} 17. Nxe5+ {[%clk 0:01:12.3]} 17... Qxe5 {[%clk
0:01:00.3]} 18. Bf4 {[%clk 0:01:02.6]} 18... Qe7 {[%clk 0:00:48.9]} 19. h5
{[%clk 0:00:56.6]} 19... Qb4 {[%clk 0:00:47.4]} 20. a3 {[%clk 0:00:48.2]} 20...
Bxc3 {[%clk 0:00:43.5]} 21. axb4 {[%clk 0:00:46]} 21... Bxd2+ {[%clk 0:00:42.8]}
22. Rxd2 {[%clk 0:00:46.1]} 22... Re4 {[%clk 0:00:40.8]} 23. Bd6 {[%clk
0:00:39.3]} 23... Rd8 {[%clk 0:00:34.3]} 24. Bc5 {[%clk 0:00:30.3]} 24... b6
{[%clk 0:00:32]} 25. f3 {[%clk 0:00:28]} 25... Rc4 {[%clk 0:00:28.7]} 26. b3
{[%clk 0:00:22.3]} 26... Rxc2+ {[%clk 0:00:24.2]} 27. Rxc2 {[%clk 0:00:22.4]}
27... Bxc2 {[%clk 0:00:24]} 28. Kxc2 {[%clk 0:00:19.8]} 28... bxc5 {[%clk
0:00:23.9]} 29. hxg6+ {[%clk 0:00:19.4]} 29... Kxg6 {[%clk 0:00:22.6]} 30. bxc5
{[%clk 0:00:19.8]} 30... Rb8 {[%clk 0:00:17.3]} 31. Kc3 {[%clk 0:00:19.8]} 31...
Rb5 {[%clk 0:00:16.3]} 32. Ra1 {[%clk 0:00:18.3]} 32... Rxc5+ {[%clk 0:00:15.9]}
33. Kd4 {[%clk 0:00:18.6]} 33... Rb5 {[%clk 0:00:15.3]} 34. Rxa7 {[%clk
0:00:18.6]} 34... Rxb3 {[%clk 0:00:14.9]} 35. Ra6 {[%clk 0:00:18.9]} 35... Rb4+
{[%clk 0:00:14.9]} 36. Kd3 {[%clk 0:00:18]} 36... Rc4 {[%clk 0:00:14.9]} 37. g3
{[%clk 0:00:16.8]} 37... h5 {[%clk 0:00:14.8]} 38. Rb6 {[%clk 0:00:15.6]} 38...
h4 {[%clk 0:00:14.6]} 39. gxh4 {[%clk 0:00:15.3]} 39... Kh5 {[%clk 0:00:15]} 40.
Ke3 {[%clk 0:00:14.9]} 40... Kxh4 {[%clk 0:00:15.2]} 41. f4 {[%clk 0:00:15.2]}
41... Kg4 {[%clk 0:00:15.2]} 42. Ra6 {[%clk 0:00:12.9]} 42... Kf5 {[%clk
0:00:13.6]} 43. Rb6 {[%clk 0:00:12.6]} 43... Rc3+ {[%clk 0:00:12.5]} 44. Kd4
{[%clk 0:00:12.5]} 44... Rc4+ {[%clk 0:00:12]} 45. Ke3 {[%clk 0:00:12.8]} 45...
Re4+ {[%clk 0:00:11.9]} 46. Kd3 {[%clk 0:00:11.4]} 46... c5 {[%clk 0:00:09.9]}
47. Rb5 {[%clk 0:00:10.5]} 47... c4+ {[%clk 0:00:07.5]} 48. Kc3 {[%clk
0:00:10.9]} 48... Re3+ {[%clk 0:00:06.2]} 49. Kd2 {[%clk 0:00:11.3]} 49... Rd3+
{[%clk 0:00:06.1]} 50. Kc2 {[%clk 0:00:11.9]} 50... Kxf4 {[%clk 0:00:06.6]} 51.
Rc5 {[%clk 0:00:12]} 51... Ke4 {[%clk 0:00:06.8]} 52. Rb5 {[%clk 0:00:12.1]}
52... Kd4 {[%clk 0:00:07.2]} 53. Rb4 {[%clk 0:00:10.9]} 53... Rh3 {[%clk
0:00:07.6]} 54. Rb6 {[%clk 0:00:10.1]} 54... Rh2+ {[%clk 0:00:07.8]} 55. Kc1
{[%clk 0:00:10.6]} 55... Kc3 {[%clk 0:00:08]} 56. Kb1 {[%clk 0:00:11.1]} 56...
d4 {[%clk 0:00:08.1]} 57. Rf6 {[%clk 0:00:10.3]} 57... d3 {[%clk 0:00:07.9]} 58.
Rf1 {[%clk 0:00:10.3]} 58... Rb2+ {[%clk 0:00:06.2]} 59. Kc1 {[%clk 0:00:09.9]}
59... Ra2 {[%clk 0:00:05.2]} 60. Kb1 {[%clk 0:00:09.8]} 60... Ra6 {[%clk
0:00:04.8]} 61. Rc1+ {[%clk 0:00:08.9]} 61... Kb3 {[%clk 0:00:03.8]} 62. Rd1
{[%clk 0:00:08.7]} 62... Re6 {[%clk 0:00:02.3]} 63. Rf1 {[%clk 0:00:08.3]} 63...
c3 {[%clk 0:00:01.8]} 64. Rd1 {[%clk 0:00:08.2]} 64... c2+ {[%clk 0:00:01.3]}
65. Kc1 {[%clk 0:00:08.7]} 65... cxd1=Q+ {[%clk 0:00:01.1]} 66. Kxd1 {[%clk
0:00:09.1]} 66... Kc3 {[%clk 0:00:01.6]} 67. Kc1 {[%clk 0:00:09.3]} 67... Re1#
{[%clk 0:00:02.2]} 0-1

[Event "*** Titled Tuesday Blitz"]
[Site "Chess.com"]
[Date "2020.05.05"]
[Round "9"]
[White "UCantHandleDenker"]
[Black "ShahMatKanal"]
[Result "0-1"]
[WhiteElo "2556"]
[BlackElo "2417"]
[TimeControl "180+1"]
[EndTime "11:49:42 PDT"]
[Termination "ShahMatKanal won by checkmate"]

1. Nf3 {[%clk 0:03:00]} 1... d5 {[%clk 0:02:58.9]} 2. c4 {[%clk 0:02:59.4]} 2...
c6 {[%clk 0:02:58.8]} 3. g3 {[%clk 0:02:59.5]} 3... Nf6 {[%clk 0:02:59]} 4. Bg2
{[%clk 0:02:59.9]} 4... Bf5 {[%clk 0:02:59.2]} 5. b3 {[%clk 0:02:59.4]} 5...
Nbd7 {[%clk 0:02:58.6]} 6. Bb2 {[%clk 0:02:58.1]} 6... e6 {[%clk 0:02:58.3]} 7.
O-O {[%clk 0:02:58.1]} 7... h6 {[%clk 0:02:58]} 8. d3 {[%clk 0:02:58.2]} 8...
Be7 {[%clk 0:02:55.7]} 9. Nbd2 {[%clk 0:02:58.3]} 9... O-O {[%clk 0:02:55.6]}
10. a3 {[%clk 0:02:58.5]} 10... a5 {[%clk 0:02:54.5]} 11. Ra2 {[%clk 0:02:58.1]}
11... Qb8 {[%clk 0:02:44.1]} 12. Qa1 {[%clk 0:02:57.1]} 12... Bh7 {[%clk
0:02:38.7]} 13. Rc1 {[%clk 0:02:55]} 13... Rc8 {[%clk 0:02:37.6]} 14. Ne5 {[%clk
0:02:35.7]} 14... Bf8 {[%clk 0:02:27.7]} 15. Bc3 {[%clk 0:02:23.3]} 15... Qd6
{[%clk 0:02:18.8]} 16. Nxd7 {[%clk 0:02:16.2]} 16... Nxd7 {[%clk 0:02:18.2]} 17.
Nf3 {[%clk 0:02:02.4]} 17... Re8 {[%clk 0:01:53.2]} 18. cxd5 {[%clk 0:01:54.1]}
18... exd5 {[%clk 0:01:51.7]} 19. b4 {[%clk 0:01:53.8]} 19... axb4 {[%clk
0:01:50.5]} 20. axb4 {[%clk 0:01:53.3]} 20... Rxa2 {[%clk 0:01:45.9]} 21. Qxa2
{[%clk 0:01:53.4]} 21... Be7 {[%clk 0:01:20.4]} 22. Bh3 {[%clk 0:01:47.6]} 22...
f5 {[%clk 0:00:51.3]} 23. Qa7 {[%clk 0:01:32.7]} 23... g5 {[%clk 0:00:48.1]} 24.
Bf1 {[%clk 0:01:25.5]} 24... Qb8 {[%clk 0:00:42.3]} 25. Qa1 {[%clk 0:01:19.1]}
25... Qd6 {[%clk 0:00:37.3]} 26. Qb2 {[%clk 0:00:45.6]} 26... Bf6 {[%clk
0:00:36.4]} 27. Bxf6 {[%clk 0:00:44.6]} 27... Qxf6 {[%clk 0:00:36.6]} 28. Qd2
{[%clk 0:00:42.5]} 28... f4 {[%clk 0:00:34.9]} 29. Rb1 {[%clk 0:00:39.2]} 29...
g4 {[%clk 0:00:26.1]} 30. Nh4 {[%clk 0:00:37.9]} 30... f3 {[%clk 0:00:26]} 31.
exf3 {[%clk 0:00:33.8]} 31... gxf3 {[%clk 0:00:26.9]} 32. Re1 {[%clk 0:00:33.7]}
32... Rxe1 {[%clk 0:00:23]} 33. Qxe1 {[%clk 0:00:33.7]} 33... Ne5 {[%clk
0:00:23.3]} 34. Qe3 {[%clk 0:00:30.3]} 34... Kg7 {[%clk 0:00:17.6]} 35. Qb6
{[%clk 0:00:24.2]} 35... Qf7 {[%clk 0:00:15.2]} 36. Qd4 {[%clk 0:00:23.2]} 36...
Qf6 {[%clk 0:00:15.7]} 37. Qe3 {[%clk 0:00:21.3]} 37... h5 {[%clk 0:00:12.2]}
38. d4 {[%clk 0:00:19.2]} 38... Nc4 {[%clk 0:00:11.8]} 39. Qxf3 {[%clk
0:00:18.9]} 39... Qxd4 {[%clk 0:00:09.2]} 40. Qxh5 {[%clk 0:00:17.4]} 40... Ne5
{[%clk 0:00:07]} 41. Qg5+ {[%clk 0:00:17.1]} 41... Kf7 {[%clk 0:00:06.1]} 42.
Qh5+ {[%clk 0:00:16.2]} 42... Kg7 {[%clk 0:00:05.4]} 43. Qe2 {[%clk 0:00:12.6]}
43... Bd3 {[%clk 0:00:03.9]} 44. Qe3 {[%clk 0:00:11]} 44... Qxe3 {[%clk
0:00:03.8]} 45. fxe3 {[%clk 0:00:10.6]} 45... Bxf1 {[%clk 0:00:04.7]} 46. Kxf1
{[%clk 0:00:11.2]} 46... Nd3 {[%clk 0:00:05.6]} 47. Nf5+ {[%clk 0:00:09.8]}
47... Kf6 {[%clk 0:00:05.5]} 48. Nd6 {[%clk 0:00:10.7]} 48... b6 {[%clk
0:00:04.4]} 49. Nc8 {[%clk 0:00:10.5]} 49... c5 {[%clk 0:00:02.9]} 50. Nxb6
{[%clk 0:00:09.2]} 50... Nxb4 {[%clk 0:00:01.7]} 51. Ke2 {[%clk 0:00:08.3]}
51... Ke5 {[%clk 0:00:02.1]} 52. h4 {[%clk 0:00:07.7]} 52... Nc6 {[%clk
0:00:02.4]} 53. Nd7+ {[%clk 0:00:07.2]} 53... Kd6 {[%clk 0:00:02.3]} 54. Nb6
{[%clk 0:00:07.7]} 54... c4 {[%clk 0:00:02.2]} 55. Na4 {[%clk 0:00:07.5]} 55...
Ne5 {[%clk 0:00:02.3]} 56. h5 {[%clk 0:00:07.3]} 56... Ke6 {[%clk 0:00:02.1]}
57. Nc3 {[%clk 0:00:07.6]} 57... Ng4 {[%clk 0:00:01.5]} 58. e4 {[%clk
0:00:07.6]} 58... d4 {[%clk 0:00:01.5]} 59. Nd5 {[%clk 0:00:08]} 59... Ke5
{[%clk 0:00:02.1]} 60. Nf4 {[%clk 0:00:05.3]} 60... Kxe4 {[%clk 0:00:01.8]} 61.
Kd2 {[%clk 0:00:06.2]} 61... c3+ {[%clk 0:00:02]} 62. Kc2 {[%clk 0:00:06.3]}
62... Nh6 {[%clk 0:00:02.9]} 63. Nd3 {[%clk 0:00:06.1]} 63... Ng4 {[%clk
0:00:03.1]} 64. Nc5+ {[%clk 0:00:06.2]} 64... Ke3 {[%clk 0:00:03.3]} 65. Nd3
{[%clk 0:00:05.6]} 65... Nh6 {[%clk 0:00:03.6]} 66. Ne5 {[%clk 0:00:05.2]} 66...
Ke4 {[%clk 0:00:03.2]} 67. Nd3 {[%clk 0:00:04.9]} 67... Ng4 {[%clk 0:00:03.5]}
68. Nf4 {[%clk 0:00:04.8]} 68... Ne3+ {[%clk 0:00:03.5]} 69. Kb3 {[%clk
0:00:04.6]} 69... c2 {[%clk 0:00:03.4]} 70. Kb2 {[%clk 0:00:05.1]} 70... d3
{[%clk 0:00:03.9]} 71. Nxd3 {[%clk 0:00:05]} 71... Kxd3 {[%clk 0:00:04.8]} 72.
h6 {[%clk 0:00:05.3]} 72... Kd2 {[%clk 0:00:05.2]} 73. h7 {[%clk 0:00:06.2]}
73... c1=Q+ {[%clk 0:00:06.1]} 74. Kb3 {[%clk 0:00:06.7]} 74... Qc8 {[%clk
0:00:06.2]} 75. Kb4 {[%clk 0:00:06.2]} 75... Qh8 {[%clk 0:00:07.1]} 76. g4
{[%clk 0:00:06.4]} 76... Qxh7 {[%clk 0:00:08]} 77. g5 {[%clk 0:00:07.3]} 77...
Qg6 {[%clk 0:00:08.6]} 78. Kc5 {[%clk 0:00:07.3]} 78... Qxg5+ {[%clk 0:00:09.5]}
79. Kd4 {[%clk 0:00:07.9]} 79... Qd5# {[%clk 0:00:09.6]} 0-1

[Event "*** Titled Tuesday Blitz"]
[Site "Chess.com"]
[Date "2020.05.05"]
[Round "9"]
[White "bancsoo"]
[Black "Bigfish1995"]
[Result "0-1"]
[WhiteElo "2746"]
[BlackElo "3088"]
[TimeControl "180+1"]
[EndTime "11:49:44 PDT"]
[Termination "Bigfish1995 won by resignation"]

1. Nf3 {[%clk 0:03:00.9]} 1... f5 {[%clk 0:02:58.2]} 2. g3 {[%clk 0:03:00.5]}
2... Nf6 {[%clk 0:02:58.7]} 3. Bg2 {[%clk 0:03:00.9]} 3... d6 {[%clk 0:02:59]}
4. O-O {[%clk 0:03:01]} 4... e5 {[%clk 0:02:59.1]} 5. d3 {[%clk 0:02:59.4]} 5...
Be7 {[%clk 0:02:59.3]} 6. e4 {[%clk 0:02:56.5]} 6... fxe4 {[%clk 0:02:56.6]} 7.
dxe4 {[%clk 0:02:55.5]} 7... O-O {[%clk 0:02:57.1]} 8. Nc3 {[%clk 0:02:49.7]}
8... c6 {[%clk 0:02:56.3]} 9. h3 {[%clk 0:02:45.4]} 9... Nbd7 {[%clk 0:02:51.7]}
10. Ne1 {[%clk 0:02:42.4]} 10... Nc5 {[%clk 0:02:45.8]} 11. Nd3 {[%clk
0:02:42.2]} 11... Ne6 {[%clk 0:02:43.5]} 12. Be3 {[%clk 0:02:41.8]} 12... d5
{[%clk 0:02:28.4]} 13. exd5 {[%clk 0:02:24.1]} 13... cxd5 {[%clk 0:02:28]} 14.
Bd2 {[%clk 0:02:02.1]} 14... e4 {[%clk 0:02:25.8]} 15. Nf4 {[%clk 0:02:01.9]}
15... Nxf4 {[%clk 0:02:21.7]} 16. Bxf4 {[%clk 0:02:01.9]} 16... Be6 {[%clk
0:02:22.2]} 17. Ne2 {[%clk 0:02:01.9]} 17... Qd7 {[%clk 0:02:20.5]} 18. Kh2
{[%clk 0:01:58.9]} 18... Rac8 {[%clk 0:02:03]} 19. Nd4 {[%clk 0:01:58.3]} 19...
Bf7 {[%clk 0:02:03.2]} 20. Qd2 {[%clk 0:01:50.5]} 20... Rfe8 {[%clk 0:01:51.4]}
21. Rad1 {[%clk 0:01:48.3]} 21... Bc5 {[%clk 0:01:48]} 22. c3 {[%clk 0:01:47.2]}
22... Bh5 {[%clk 0:01:37]} 23. Rde1 {[%clk 0:01:40.2]} 23... h6 {[%clk 0:01:32]}
24. Nc2 {[%clk 0:01:37.6]} 24... Rcd8 {[%clk 0:01:29.1]} 25. Kg1 {[%clk
0:01:28.2]} 25... b6 {[%clk 0:01:25.8]} 26. g4 {[%clk 0:01:25.1]} 26... Bf7
{[%clk 0:01:07.3]} 27. Rd1 {[%clk 0:01:25.1]} 27... h5 {[%clk 0:00:50.4]} 28. g5
{[%clk 0:01:21.3]} 28... Nh7 {[%clk 0:00:50.5]} 29. Nd4 {[%clk 0:01:17.7]} 29...
Nf8 {[%clk 0:00:50.1]} 30. Kh1 {[%clk 0:01:07.5]} 30... Ng6 {[%clk 0:00:50.3]}
31. Bg3 {[%clk 0:01:07.9]} 31... h4 {[%clk 0:00:48.7]} 32. Bh2 {[%clk 0:01:08]}
32... Be6 {[%clk 0:00:34.6]} 33. Nxe6 {[%clk 0:01:02.6]} 33... Qxe6 {[%clk
0:00:35.5]} 34. f4 {[%clk 0:00:57.7]} 34... Ne7 {[%clk 0:00:32]} 35. Qe2 {[%clk
0:00:36]} 35... Nf5 {[%clk 0:00:31.4]} 36. b4 {[%clk 0:00:26.9]} 36... Be7
{[%clk 0:00:25.6]} 37. a3 {[%clk 0:00:22]} 37... Rc8 {[%clk 0:00:24]} 38. Rc1
{[%clk 0:00:20.7]} 38... Rc4 {[%clk 0:00:20.5]} 39. Rfd1 {[%clk 0:00:21]} 39...
Rec8 {[%clk 0:00:17.3]} 40. Qd2 {[%clk 0:00:21.3]} 40... d4 {[%clk 0:00:15.3]}
41. cxd4 {[%clk 0:00:19.9]} 41... e3 {[%clk 0:00:15.6]} 42. Qe1 {[%clk 0:00:20]}
42... e2 {[%clk 0:00:13.2]} 43. Rxc4 {[%clk 0:00:20.1]} 43... Rxc4 {[%clk
0:00:08.8]} 44. Rb1 {[%clk 0:00:19.7]} 44... Nxd4 {[%clk 0:00:07.4]} 45. Bg1
{[%clk 0:00:17.8]} 45... Nc2 {[%clk 0:00:07.5]} 46. Qd2 {[%clk 0:00:12.8]} 46...
Kf8 {[%clk 0:00:05.4]} 47. Bf2 {[%clk 0:00:12]} 47... Rc7 {[%clk 0:00:02.2]} 48.
Bd5 {[%clk 0:00:12]} 48... Qxh3+ {[%clk 0:00:01.9]} 49. Kg1 {[%clk 0:00:12.5]}
49... Qg4+ {[%clk 0:00:02.3]} 50. Kh2 {[%clk 0:00:11.5]} 50... Nxa3 {[%clk
0:00:03.2]} 51. Rg1 {[%clk 0:00:11.2]} 51... Qf5 {[%clk 0:00:02.1]} 52. Bf3
{[%clk 0:00:10.5]} 52... Rc2 {[%clk 0:00:02.3]} 53. Qe1 {[%clk 0:00:11]} 53...
Qxf4+ {[%clk 0:00:02]} 54. Kg2 {[%clk 0:00:11.3]} 54... Bd6 {[%clk 0:00:02.6]}
55. Rh1 {[%clk 0:00:10.9]} 55... Nc4 {[%clk 0:00:02.2]} 56. Rxh4 {[%clk
0:00:11.2]} 56... Ne3+ {[%clk 0:00:02.8]} 57. Bxe3 {[%clk 0:00:11]} 57... Qxe3
{[%clk 0:00:03.7]} 58. Re4 {[%clk 0:00:11.3]} 58... Qxg5+ {[%clk 0:00:03.5]} 59.
Rg4 {[%clk 0:00:11.4]} 59... Qd2 {[%clk 0:00:04.4]} 60. Qxd2 {[%clk 0:00:08.4]}
60... Rxd2 {[%clk 0:00:05.3]} 61. Kf2 {[%clk 0:00:09.3]} 61... e1=Q+ {[%clk
0:00:05.3]} 62. Kxe1 {[%clk 0:00:09.5]} 62... Rb2 {[%clk 0:00:06.2]} 63. Kd1
{[%clk 0:00:07.9]} 63... Bxb4 {[%clk 0:00:06.5]} 64. Rc4 {[%clk 0:00:08.1]}
64... a5 {[%clk 0:00:06.6]} 65. Rc6 {[%clk 0:00:07.6]} 65... Bc5 {[%clk
0:00:06.7]} 66. Bd5 {[%clk 0:00:08.1]} 66... Rb4 {[%clk 0:00:06.5]} 67. Kc2
{[%clk 0:00:07.7]} 67... Rd4 {[%clk 0:00:06.6]} 68. Ba2 {[%clk 0:00:08.1]} 68...
g5 {[%clk 0:00:06.8]} 69. Rc7 {[%clk 0:00:07.2]} 69... g4 {[%clk 0:00:06.9]} 70.
Rf7+ {[%clk 0:00:07.4]} 70... Ke8 {[%clk 0:00:07.4]} 71. Rg7 {[%clk 0:00:08.2]}
71... Re4 {[%clk 0:00:07.7]} 72. Bd5 {[%clk 0:00:08.2]} 72... Re2+ {[%clk
0:00:07.8]} 73. Kb3 {[%clk 0:00:08.5]} 73... Re3+ {[%clk 0:00:07.8]} 74. Kc4
{[%clk 0:00:08.1]} 74... g3 {[%clk 0:00:08.4]} 75. Kb5 {[%clk 0:00:08]} 75...
Rd3 {[%clk 0:00:07.9]} 76. Bc4 {[%clk 0:00:07.8]} 76... Rc3 {[%clk 0:00:08.2]}
77. Bd5 {[%clk 0:00:08.2]} 77... Bd4 {[%clk 0:00:08.2]} 78. Bc4 {[%clk 0:00:08]}
78... Bxg7 {[%clk 0:00:08.1]} 0-1